bitfinex-derivatives/quotes_BTCF0:USTF0_20250812
["timestamp","ask_amount","ask_price","bid_price","bid_amount"]
[1755036702403,1.07426878,119800.0,119790.0,0.087493]
[1755036702595,1.43533769,119800.0,119790.0,0.137323]
[1755036702801,1.43533769,119800.0,119790.0,0.186593]
[1755036703203,1.43533769,119800.0,119790.0,0.087493]
[1755036703911,1.43533769,119800.0,119790.0,0.121483]
[1755036704110,1.43533769,119800.0,119790.0,0.137323]
[1755036704409,1.43533769,119800.0,119790.0,0.152113]
[1755036705312,1.43533769,119800.0,119790.0,0.087493]
[1755036706411,1.43533769,119800.0,119790.0,0.121483]
[1755036706610,1.43533769,119800.0,119790.0,0.186593]
[1755036707513,1.43533769,119800.0,119790.0,0.137323]
[1755036707914,1.43533769,119800.0,119790.0,0.097343]
[1755036708414,1.43533769,119800.0,119790.0,0.087493]
[1755036708614,2.23445769,119800.0,119790.0,0.004]
[1755036708825,2.5955266,119800.0,119790.0,0.004]
[1755036710117,2.5955266,119800.0,119790.0,0.002]
[1755036710816,2.5955266,119800.0,119770.0,1.137124]
[1755036710817,0.1307899,119780.0,119770.0,1.137124]
[1755036711018,1.05403881,119780.0,119770.0,1.161264]
[1755036711316,1.05403881,119780.0,119770.0,0.362264]
[1755036711719,1.05403881,119780.0,119770.0,0.383854]
[1755036712013,1.05403881,119780.0,119770.0,0.334024]
[1755036712218,1.05403881,119780.0,119770.0,0.336024]
[1755036712418,1.05603881,119780.0,119770.0,0.336024]
[1755036712621,1.05603881,119780.0,119770.0,0.37819362]
[1755036713111,1.05603881,119780.0,119770.0,0.169012]
[1755036713508,2.21555881,119780.0,119770.0,0.085506]
[1755036716323,2.21555881,119780.0,119770.0,0.002]
[1755036720325,2.21555881,119780.0,119770.0,0.0855069]
[1755036721225,2.21555881,119780.0,119770.0,0.002]
[1755036722620,2.21555881,119780.0,119750.0,2.25148]
[1755036722621,2.21555881,119780.0,119750.0,0.26469]
[1755036722823,1.28559172,119760.0,119750.0,0.16704]
[1755036723019,1.39559172,119760.0,119750.0,0.16704]
[1755036723323,1.39532281,119760.0,119750.0,0.28476]
[1755036724115,1.39532281,119760.0,119750.0,0.29406321]
[1755036725126,1.39732281,119760.0,119750.0,0.29406321]
[1755036725628,1.39732281,119760.0,119750.0,0.29506321]
[1755036726530,1.46417651,119760.0,119750.0,0.29506321]
[1755036727129,1.46417651,119760.0,119750.0,0.29606321]
[1755036730231,0.112,119760.0,119750.0,0.65713212]
[1755036730428,0.002,119760.0,119750.0,1.30217355]
[1755036731135,0.002,119760.0,119750.0,0.94110464]
[1755036731432,0.002,119760.0,119750.0,1.30217355]
[1755036731624,0.002,119760.0,119750.0,1.25217355]
[1755036731831,0.58174238,119790.0,119780.0,0.20122]
[1755036732033,0.70174238,119790.0,119780.0,0.9987]
[1755036732229,1.06281129,119790.0,119780.0,0.9987]
[1755036733027,1.06281129,119790.0,119780.0,0.9997]
[1755036733231,1.06381129,119790.0,119780.0,1.0017]
[1755036734542,0.70274238,119790.0,119780.0,1.0017]
[1755036735040,1.06381129,119790.0,119780.0,1.0017]
[1755036744944,0.50010938,119790.0,119780.0,1.0017]
[1755036745346,0.58360228,119790.0,119780.0,1.0017]
[1755036745548,0.50010938,119790.0,119780.0,1.0017]
[1755036746644,0.70274228,119790.0,119780.0,1.0017]
[1755036746847,1.06381119,119790.0,119780.0,1.0017]
[1755036747048,1.04550181,119790.0,119780.0,1.0017]
[1755036747247,0.6844329,119790.0,119780.0,1.0017]
[1755036747448,1.04550181,119790.0,119780.0,1.0017]
[1755036747749,0.6844329,119790.0,119780.0,1.0017]
[1755036748047,1.04550181,119790.0,119780.0,1.0017]
[1755036752349,0.6844329,119790.0,119780.0,1.0017]
[1755036752750,1.04550181,119790.0,119780.0,1.0017]
[1755036759150,1.04550181,119790.0,119780.0,0.20422]
[1755036759357,0.6844329,119790.0,119780.0,0.97741]
[1755036759554,1.04550181,119790.0,119780.0,0.97741]
[1755036760250,1.04550181,119790.0,119780.0,0.99917]
[1755036764162,0.60120891,119790.0,119780.0,1.35997]
[1755036764367,0.15989,119790.0,119780.0,1.72103891]
[1755036765061,0.19316,119790.0,119780.0,1.35997]
[1755036766562,0.121,119790.0,119780.0,1.72103891]
[1755036766785,0.001,119790.0,119780.0,1.72103891]
[1755036767863,0.131,119790.0,119780.0,1.72103891]
[1755036770965,0.131,119790.0,119780.0,1.35997]
[1755036771164,0.131,119790.0,119780.0,1.72103891]
[1755036771466,0.131,119790.0,119780.0,1.35997]
[1755036771664,0.131,119790.0,119780.0,1.72103891]
[1755036774470,0.16427,119790.0,119780.0,1.35997]
[1755036775163,0.131,119790.0,119780.0,1.35997]
[1755036776973,0.131,119790.0,119780.0,1.72103891]
[1755036778073,0.001,119790.0,119780.0,1.72103891]
[1755036779270,0.001,119790.0,119780.0,1.88800691]
[1755036780269,0.04783,119820.0,119810.0,0.359404]
[1755036780570,0.3219519,119820.0,119810.0,1.2368409]
[1755036780873,0.59954891,119820.0,119810.0,1.2368409]
[1755036781579,0.60354891,119820.0,119810.0,1.2378409]
[1755036782176,0.24248,119820.0,119810.0,1.2378409]
[1755036782968,0.3259521,119820.0,119810.0,1.2378409]
[1755036784279,0.68702101,119820.0,119810.0,1.2378409]
[1755036784579,0.68702101,119820.0,119810.0,1.24622283]
[1755036786980,0.3259521,119820.0,119810.0,1.24622283]
[1755036787179,0.68702101,119820.0,119810.0,1.24622283]
[1755036788377,0.3259521,119820.0,119810.0,1.24622283]
[1755036788781,0.68702101,119820.0,119810.0,1.24622283]
[1755036789573,0.22861,119820.0,119810.0,1.24622283]
[1755036789779,0.20451,119820.0,119810.0,1.24622283]
[1755036790177,0.312082,119820.0,119810.0,1.24622283]
[1755036790379,0.325952,119820.0,119810.0,1.24622283]
[1755036791084,0.68702091,119820.0,119810.0,1.24622283]
[1755036795388,0.325952,119820.0,119810.0,1.24622283]
[1755036795587,0.68702091,119820.0,119810.0,1.24622283]
[1755036796681,0.24248,119820.0,119810.0,1.24622283]
[1755036796884,0.68702091,119820.0,119810.0,1.24622283]
[1755036797586,0.60354891,119820.0,119810.0,1.24622283]
[1755036798086,0.24248,119820.0,119810.0,1.24622283]
[1755036798287,0.325952,119820.0,119810.0,1.24622283]
[1755036800085,0.24248,119820.0,119810.0,1.24622283]
[1755036801078,0.124,119820.0,119810.0,1.60729174]
[1755036803688,0.124,119820.0,119810.0,1.67559336]
[1755036805396,0.124,119820.0,119810.0,2.03639336]
[1755036806690,0.124,119820.0,119810.0,1.67532445]
[1755036808596,0.686752,119820.0,119810.0,0.09286093]
[1755036808793,1.04782091,119820.0,119810.0,0.09286093]
[1755036808998,1.04782091,119820.0,119810.0,0.11630093]
[1755036809199,1.04782091,119820.0,119810.0,0.18910093]
[1755036809701,1.0663429,119820.0,119810.0,0.18910093]
[1755036809895,0.70527399,119820.0,119810.0,0.18910093]
[1755036810103,1.0663429,119820.0,119810.0,0.21011093]
[1755036810802,0.70527399,119820.0,119810.0,0.21011093]
[1755036811004,1.0663429,119820.0,119810.0,0.21011093]
[1755036813239,1.0663429,119820.0,119810.0,0.201729]
[1755036814902,0.70527399,119820.0,119810.0,0.201729]
[1755036815206,1.0663429,119820.0,119810.0,0.21005073]
[1755036815599,1.0663429,119820.0,119810.0,0.201729]
[1755036817809,1.0663429,119820.0,119810.0,0.21015845]
[1755036819609,0.70527399,119820.0,119810.0,0.21015845]
[1755036819804,1.0663429,119820.0,119810.0,0.21015845]
[1755036823011,0.004,119820.0,119810.0,0.93202736]
[1755036823214,0.004,119820.0,119810.0,0.57095845]
[1755036823513,0.004,119820.0,119810.0,0.93202736]
[1755036827015,0.004,119820.0,119810.0,0.99988824]
[1755036832314,0.004,119820.0,119810.0,0.63881933]
[1755036832521,0.124,119820.0,119810.0,1.42977933]
[1755036832822,0.19354,119820.0,119810.0,1.42977933]
[1755036833119,0.21604,119820.0,119810.0,1.42977933]
[1755036833312,0.21604,119820.0,119810.0,1.57976994]
[1755036833712,0.21404,119820.0,119810.0,1.94083885]
[1755036834014,0.21404,119820.0,119810.0,1.57976994]
[1755036834218,0.21404,119820.0,119810.0,1.94083885]
[1755036834818,0.21304,119820.0,119810.0,1.94283885]
[1755036835032,0.21304,119820.0,119810.0,1.79284824]
[1755036837015,0.20304,119820.0,119810.0,1.79284824]
[1755036837215,0.14259,119820.0,119810.0,1.43177933]
[1755036837422,0.02259,119820.0,119810.0,1.43177933]
[1755036837620,0.02259,119820.0,119810.0,1.79284824]
[1755036838222,0.001,119820.0,119810.0,1.79284824]
[1755036840715,0.111,119820.0,119810.0,1.00188824]
[1755036840916,0.60283101,119820.0,119810.0,0.28001933]
[1755036841219,1.03712101,119820.0,119810.0,1.00801845]
[1755036841723,2.53712101,119820.0,119810.0,1.00801845]
[1755036842916,2.1760521,119820.0,119810.0,1.00801845]
[1755036843323,2.53712101,119820.0,119810.0,1.00801845]
[1755036845229,2.1760521,119820.0,119810.0,1.00801845]
[1755036845525,2.53712101,119820.0,119810.0,1.00801845]
[1755036847830,2.1760521,119820.0,119810.0,1.00801845]
[1755036848028,2.53712101,119820.0,119810.0,1.00801845]
[1755036849328,2.53712101,119820.0,119810.0,0.10473845]
[1755036849533,2.53712101,119820.0,119810.0,0.877079]
[1755036850231,2.53712101,119820.0,119810.0,0.003]
[1755036850727,2.53712101,119820.0,119810.0,0.086479]
[1755036851125,3.49464902,119820.0,119810.0,0.003]
[1755036851331,3.50320522,119820.0,119810.0,0.003]
[1755036851526,0.099519,119810.0,119800.0,0.9575692]
[1755036851828,1.03703791,119810.0,119800.0,0.96584173]
[1755036852024,1.03703791,119810.0,119800.0,0.9575692]
[1755036855829,0.676969,119810.0,119800.0,0.7916]
[1755036856124,0.676969,119810.0,119800.0,0.875086]
[1755036856324,0.676969,119810.0,119800.0,0.7916]
[1755036856524,1.03803791,119810.0,119800.0,0.7916]
[1755036856726,1.03803791,119810.0,119800.0,0.001]
[1755036858134,0.676969,119810.0,119800.0,0.001]
[1755036858334,1.03803791,119810.0,119800.0,0.084486]
[1755036858529,1.03703791,119810.0,119800.0,0.001]
[1755036858730,1.03903791,119810.0,119800.0,0.002]
[1755036858929,1.04003791,119810.0,119800.0,0.001]
[1755036860133,1.04003791,119810.0,119800.0,0.084486]
[1755036860330,1.04003791,119810.0,119800.0,0.001]
[1755036861133,1.04003791,119810.0,119800.0,0.084486]
[1755036862631,0.678969,119810.0,119800.0,0.084486]
[1755036862834,1.04003791,119810.0,119800.0,0.084486]
[1755036864535,1.04003791,119810.0,119800.0,0.108836]
[1755036864739,1.04003791,119810.0,119800.0,0.183196]
[1755036865038,1.04003791,119810.0,119800.0,0.206426]
[1755036867939,0.678969,119810.0,119800.0,0.206426]
[1755036868139,1.04003791,119810.0,119800.0,0.206426]
[1755036870840,0.67923791,119810.0,119800.0,0.206426]
[1755036871035,1.40083791,119810.0,119800.0,0.206426]
[1755036875441,1.41928338,119810.0,119800.0,0.001]
[1755036876137,1.78035229,119810.0,119800.0,0.001]
[1755036876437,0.2017229,119790.0,119780.0,0.36586533]
[1755036876641,1.04359181,119790.0,119780.0,0.34249533]
[1755036876942,1.04359181,119790.0,119780.0,0.25899603]
[1755036877938,1.04359181,119790.0,119780.0,0.2514958]
[1755036878639,1.04459181,119790.0,119780.0,0.2524958]
[1755036879040,1.04459181,119790.0,119780.0,0.1689965]
[1755036880541,1.04459181,119790.0,119780.0,0.2171465]
[1755036880741,1.04459181,119790.0,119780.0,0.2635765]
[1755036881043,1.04459181,119790.0,119780.0,0.2851665]
[1755036881743,1.06327585,119790.0,119780.0,0.2851665]
[1755036883651,0.66482694,119790.0,119780.0,0.29361499]
[1755036883843,0.54874404,119790.0,119780.0,0.29361499]
[1755036884040,0.66482694,119790.0,119780.0,0.29361499]
[1755036884945,0.01968404,119790.0,119780.0,0.6546839]
[1755036885345,0.01968404,119790.0,119780.0,1.0154839]
[1755036886145,0.01968404,119790.0,119780.0,0.6546839]
[1755036886449,0.12968404,119790.0,119780.0,0.6546839]
[1755036886649,0.15230404,119790.0,119780.0,0.29361499]
[1755036886851,0.24791404,119790.0,119780.0,0.29361499]
[1755036887945,0.001,119790.0,119780.0,1.0154839]
[1755036888547,0.001,119790.0,119780.0,1.0654839]
[1755036888744,0.001,119790.0,119780.0,1.2324519]
[1755036889247,2.0142423,119820.0,119810.0,0.083479]
[1755036889454,2.1342423,119820.0,119810.0,1.004049]
[1755036889647,1.9808,119820.0,119810.0,1.36511791]
[1755036889851,1.62,119820.0,119810.0,1.36511791]
[1755036890246,1.65259,119820.0,119810.0,1.36511791]
[1755036890448,1.622,119820.0,119810.0,0.083479]
[1755036890649,2.49731101,119820.0,119810.0,0.910809]
[1755036890848,2.49731101,119820.0,119810.0,0.083479]
[1755036891453,2.1362421,119820.0,119810.0,0.083479]
[1755036891654,2.50131101,119820.0,119810.0,0.084479]
[1755036893451,2.50131101,119820.0,119810.0,0.099829]
[1755036893656,2.50131101,119820.0,119810.0,0.179059]
[1755036893856,2.50131101,119820.0,119810.0,0.200649]
[1755036894758,2.50131101,119820.0,119810.0,0.168659]
[1755036895551,2.50131101,119820.0,119810.0,0.154219]
[1755036895757,2.50131101,119820.0,119810.0,0.132629]
[1755036897952,2.41783891,119820.0,119810.0,0.084479]
[1755036898258,1.65859,119820.0,119810.0,0.200649]
[1755036898453,1.69597,119820.0,119810.0,0.200649]
[1755036900159,2.05703891,119820.0,119810.0,0.200649]
[1755036900359,1.779442,119820.0,119810.0,0.200649]
[1755036900560,2.14051091,119820.0,119810.0,0.200649]
[1755036901961,2.05703891,119820.0,119810.0,0.200649]
[1755036902354,1.69597,119820.0,119810.0,0.200649]
[1755036902550,1.69597,119820.0,119810.0,0.56171791]
[1755036902856,1.69597,119820.0,119810.0,0.200649]
[1755036903767,1.506,119820.0,119810.0,0.92251791]
[1755036904564,1.506,119820.0,119810.0,0.98762765]
[1755036904760,0.006,119820.0,119810.0,0.98762765]
[1755036905464,0.006,119820.0,119810.0,1.15455565]
[1755036906069,0.04073,119820.0,119810.0,1.15455565]
[1755036906366,0.08752,119820.0,119810.0,1.15455565]
[1755036906561,0.12525,119820.0,119810.0,1.15455565]
[1755036907066,0.08752,119820.0,119810.0,1.15455565]
[1755036907369,0.006,119820.0,119810.0,1.15455565]
[1755036907761,0.006,119820.0,119810.0,0.98762765]
[1755036908756,0.06273,119820.0,119810.0,0.98762765]
[1755036908958,0.11566,119820.0,119810.0,0.98762765]
[1755036909352,0.006,119820.0,119810.0,0.98762765]
[1755036913774,0.07793,119820.0,119810.0,0.98762765]
[1755036914078,0.12525,119820.0,119810.0,0.98762765]
[1755036914374,0.006,119820.0,119810.0,0.98762765]
[1755036916461,0.10966,119830.0,119820.0,0.2035225]
[1755036916662,0.10966,119830.0,119820.0,1.73091141]
[1755036916871,0.07193,119830.0,119820.0,1.73091141]
[1755036918067,0.07293,119830.0,119820.0,1.73191141]
[1755036918263,0.07593,119830.0,119820.0,1.73191141]
[1755036918766,0.004,119830.0,119820.0,1.73191141]
[1755036919171,0.002,119830.0,119820.0,1.73391141]
[1755036919465,0.001,119830.0,119820.0,1.73391141]
[1755036922178,1.5,119840.0,119830.0,0.04899]
[1755036922374,0.46364209,119860.0,119850.0,0.1313816]
[1755036922571,0.21284209,119860.0,119850.0,1.0087016]
[1755036922972,0.969441,119860.0,119850.0,1.0087016]
[1755036923374,0.608641,119860.0,119850.0,1.0087016]
[1755036923880,1.0528856,119860.0,119850.0,1.0087016]
[1755036924275,1.0528856,119860.0,119850.0,0.9744916]
[1755036924472,1.0528856,119860.0,119840.0,0.6946203]
[1755036924473,1.0528856,119860.0,119840.0,0.2503635]
[1755036924673,0.56377051,119850.0,119840.0,1.0555635]
[1755036924982,1.03457051,119850.0,119840.0,1.0555635]
[1755036925177,0.67377051,119850.0,119840.0,1.0555635]
[1755036925375,0.67377051,119850.0,119840.0,1.0786935]
[1755036925777,1.03457051,119850.0,119840.0,1.0786935]
[1755036925976,1.03457051,119850.0,119840.0,1.0934735]
[1755036926579,1.03457051,119850.0,119840.0,1.1276835]
[1755036927085,0.6735016,119850.0,119840.0,1.0786935]
[1755036927274,1.03557051,119850.0,119840.0,1.0806935]
[1755036927475,1.03557051,119850.0,119840.0,1.08903347]
[1755036927675,1.03557051,119850.0,119840.0,1.0575635]
[1755036927881,1.03657051,119850.0,119840.0,1.0575635]
[1755036929583,1.03657051,119850.0,119840.0,0.2523635]
[1755036929779,1.03657051,119850.0,119840.0,1.0560835]
[1755036929978,1.03657051,119850.0,119840.0,0.80572]
[1755036930179,1.61451942,119850.0,119840.0,0.002]
[1755036930381,0.203595,119830.0,119820.0,0.2504095]
[1755036930587,0.0978689,119810.0,119800.0,1.1619194]
[1755036930883,0.93955781,119810.0,119800.0,1.1619194]
[1755036931887,0.94055781,119810.0,119800.0,1.1699194]
[1755036932585,0.94055781,119810.0,119800.0,1.1659194]
[1755036933188,0.94055781,119810.0,119800.0,1.1639194]
[1755036933486,0.94055781,119810.0,119800.0,1.1979794]
[1755036934380,0.94055781,119810.0,119800.0,1.2123394]
[1755036935983,0.5794889,119810.0,119800.0,1.2123394]
[1755036936182,0.94055781,119810.0,119800.0,1.2123394]
[1755036941588,0.94055781,119810.0,119800.0,1.0804339]
[1755036941989,0.94055781,119810.0,119800.0,1.1144939]
[1755036942484,0.94055781,119810.0,119800.0,1.1288539]
[1755036943485,0.94055781,119810.0,119800.0,1.0804339]
[1755036944696,0.94055781,119810.0,119800.0,1.1144939]
[1755036945300,0.94055781,119810.0,119800.0,1.0310084]
[1755036945482,0.94055781,119810.0,119800.0,0.9852129]
[1755036946693,0.94055781,119810.0,119800.0,0.1808129]
[1755036947485,0.94055781,119810.0,119800.0,0.1905529]
[1755036947889,0.94055781,119810.0,119800.0,0.2049129]
[1755036950597,1.74071781,119810.0,119800.0,0.2049129]
[1755036951186,2.46258672,119810.0,119800.0,0.02558]
[1755036951498,2.46258672,119810.0,119800.0,0.002]
[1755036951698,2.52810365,119810.0,119800.0,0.002]
[1755036951898,2.16703474,119810.0,119800.0,0.002]
[1755036952197,2.67952272,119810.0,119800.0,0.002]
[1755036952897,2.67952272,119810.0,119800.0,0.02558]
[1755036953289,2.31845381,119810.0,119800.0,0.02558]
[1755036953489,2.33725743,119810.0,119800.0,0.02558]
[1755036956497,2.35380944,119810.0,119800.0,0.02558]
[1755036958495,2.18399344,119810.0,119800.0,0.1905558]
[1755036958799,2.18387344,119810.0,119800.0,0.2049158]
[1755036959998,2.18387344,119810.0,119800.0,0.02558]
[1755036960799,2.54494235,119810.0,119800.0,0.002]
[1755036961000,2.71187835,119810.0,119800.0,0.002]
[1755036961199,0.1071128,119790.0,119780.0,0.191788]
[1755036961400,1.74614171,119790.0,119780.0,0.289108]
[1755036961899,0.94898171,119790.0,119780.0,0.289108]
[1755036962502,0.94898171,119790.0,119780.0,0.290108]
[1755036962701,0.94998171,119790.0,119780.0,0.293108]
[1755036964303,0.5889128,119790.0,119780.0,0.293108]
[1755036964511,0.94998171,119790.0,119780.0,0.293108]
[1755036966908,0.94998171,119790.0,119780.0,0.278928]
[1755036967297,0.94998171,119790.0,119780.0,0.293108]
[1755036971806,0.5889128,119790.0,119780.0,0.293108]
[1755036972204,0.94998171,119790.0,119780.0,0.293108]
[1755036972606,0.5652928,119790.0,119780.0,0.293108]
[1755036974496,0.4818,119790.0,119780.0,1.090108]
[1755036975707,0.2281128,119790.0,119780.0,1.090108]
[1755036976004,0.58918171,119790.0,119780.0,1.090108]
[1755036976498,0.94998171,119790.0,119780.0,1.090108]
[1755036977609,0.50542,119790.0,119780.0,1.090108]
[1755036977807,0.121,119790.0,119780.0,1.090108]
[1755036978608,1.621,119790.0,119780.0,1.090108]
[1755036979709,1.63479,119790.0,119780.0,1.090108]
[1755036979903,1.63479,119790.0,119780.0,1.81197691]
[1755036979904,1.51479,119790.0,119780.0,1.81197691]
[1755036980206,1.501,119790.0,119780.0,1.81197691]
[1755036982412,0.001,119790.0,119780.0,1.81197691]
[1755036982706,0.93125743,119810.0,119800.0,0.2055959]
[1755036982912,1.05125743,119810.0,119800.0,0.9999159]
[1755036984208,0.60697213,119810.0,119800.0,0.9999159]
[1755036984813,0.60697213,119810.0,119800.0,0.2055959]
[1755036985514,0.60797213,119810.0,119800.0,0.2065959]
[1755036985717,0.96877213,119810.0,119800.0,0.2065959]
[1755036986213,0.60797213,119810.0,119800.0,0.2065959]
[1755036987318,0.60797213,119810.0,119800.0,0.1924159]
[1755036987505,0.60797213,119810.0,119800.0,0.1479159]
[1755036987704,0.60797213,119810.0,119800.0,0.1824359]
[1755036988320,0.60797213,119810.0,119800.0,0.1479159]
[1755036989019,0.60797213,119810.0,119800.0,0.1824359]
[1755036989617,0.60797213,119810.0,119800.0,0.2069959]
[1755036990013,0.24690322,119810.0,119800.0,0.2069959]
[1755036990211,0.60797213,119810.0,119800.0,0.2069959]
[1755036990423,0.24690322,119810.0,119800.0,0.2069959]
[1755036990622,0.60797213,119810.0,119800.0,0.2069959]
[1755036991117,0.60797213,119810.0,119800.0,0.1924159]
[1755036991711,0.60797213,119810.0,119800.0,0.2069959]
[1755036992119,0.96877213,119810.0,119800.0,0.1092759]
[1755036993810,0.96877213,119810.0,119800.0,0.1798859]
[1755036994013,1.76261213,119810.0,119800.0,0.1798859]
[1755036994621,0.96877213,119810.0,119800.0,0.1798859]
[1755036994817,1.76261213,119810.0,119800.0,0.1798859]
[1755036995212,1.76261213,119810.0,119800.0,0.1478459]
[1755036995413,1.76261213,119810.0,119800.0,0.1798859]
[1755036996321,0.96877213,119810.0,119800.0,0.1798859]
[1755036996524,1.76241213,119810.0,119800.0,0.1798859]
[1755036996821,1.76241213,119810.0,119800.0,0.1092759]
[1755036997219,1.76241213,119810.0,119800.0,0.0844859]
[1755036997719,1.40134322,119810.0,119800.0,0.1089159]
[1755036997912,1.76241213,119810.0,119800.0,0.1089159]
[1755036999616,0.60770322,119810.0,119800.0,0.1089159]
[1755036999823,1.76221213,119810.0,119800.0,0.1089159]
[1755037000218,1.40114322,119810.0,119800.0,0.1795259]
[1755037000418,1.76221213,119810.0,119800.0,0.1795259]
[1755037000718,0.96877213,119810.0,119800.0,0.1795259]
[1755037000926,0.96877213,119810.0,119800.0,0.1891659]
[1755037001727,0.96877213,119810.0,119800.0,0.1571259]
[1755037002030,0.96877213,119810.0,119800.0,0.2037459]
[1755037002226,1.03485668,119810.0,119800.0,0.2037459]
[1755037002426,1.03485668,119810.0,119800.0,0.1891659]
[1755037002726,1.03485668,119810.0,119800.0,0.2037459]
[1755037003521,1.03485668,119810.0,119800.0,0.1891659]
[1755037005418,0.67378777,119810.0,119800.0,0.1891659]
[1755037005622,1.03485668,119810.0,119800.0,0.1891659]
[1755037009427,1.03485668,119810.0,119800.0,0.2037459]
[1755037009724,1.03485668,119810.0,119800.0,0.1891659]
[1755037010031,0.67378777,119810.0,119800.0,0.1891659]
[1755037010232,1.03485668,119810.0,119800.0,0.1891659]
[1755037012626,1.03485668,119810.0,119800.0,0.1089159]
[1755037012832,1.03485668,119810.0,119800.0,0.001]
[1755037013225,1.39592559,119810.0,119800.0,0.001]
[1755037017137,1.39592559,119810.0,119800.0,0.02543]
[1755037017435,1.03485668,119810.0,119800.0,0.02543]
[1755037018640,0.67378777,119810.0,119800.0,0.02543]
[1755037018942,1.03485668,119810.0,119800.0,0.1089155]
[1755037019734,1.03485668,119810.0,119800.0,0.1887955]
[1755037019934,0.67378777,119810.0,119800.0,0.1887955]
[1755037020238,1.03485668,119810.0,119800.0,0.2032355]
[1755037021634,1.03485668,119810.0,119800.0,0.0844856]
[1755037022037,1.03485668,119810.0,119800.0,0.1085756]
[1755037022434,1.03485668,119810.0,119800.0,0.2040556]
[1755037023549,1.39592559,119810.0,119800.0,0.001]
[1755037023837,1.03485668,119810.0,119800.0,0.001]
[1755037024342,1.03485668,119810.0,119800.0,0.02509]
[1755037024550,1.03485668,119810.0,119800.0,0.1085756]
[1755037024839,1.03485668,119810.0,119800.0,0.2040556]
[1755037026935,1.03485668,119810.0,119800.0,0.10613]
[1755037027141,1.03485668,119810.0,119800.0,0.07446]
[1755037027335,1.03485668,119810.0,119800.0,0.06488]
[1755037027843,1.03485668,119810.0,119800.0,0.1483656]
[1755037028341,1.03485668,119810.0,119800.0,0.02509]
[1755037030034,1.39592559,119810.0,119800.0,0.02509]
[1755037030348,1.03485668,119810.0,119800.0,0.02509]
[1755037030941,1.39592559,119810.0,119800.0,0.02509]
[1755037031245,1.03485668,119810.0,119800.0,0.02509]
[1755037031944,1.39592559,119810.0,119800.0,0.02509]
[1755037034647,1.03485668,119810.0,119800.0,0.02509]
[1755037034941,1.03485668,119810.0,119800.0,0.07324]
[1755037035641,1.03485668,119810.0,119800.0,0.04157]
[1755037036044,1.03485668,119810.0,119800.0,0.02509]
[1755037037648,1.03485668,119810.0,119800.0,0.1085756]
[1755037037840,1.03485668,119810.0,119800.0,0.02509]
[1755037045456,1.39592559,119810.0,119800.0,0.02509]
[1755037045954,1.39592559,119810.0,119800.0,0.001]
[1755037046160,1.39592559,119810.0,119780.0,0.1075856]
[1755037046161,0.1072025,119790.0,119780.0,0.1075895]
[1755037046352,1.74163141,119790.0,119780.0,0.1392595]
[1755037046545,0.94907141,119790.0,119780.0,0.1790495]
[1755037046857,0.94907141,119790.0,119780.0,0.1886295]
[1755037047061,0.94907141,119790.0,119780.0,0.2030695]
[1755037047647,0.95107141,119790.0,119780.0,0.2040695]
[1755037048860,0.95107141,119790.0,119780.0,0.2050695]
[1755037051356,0.94907141,119790.0,119780.0,0.2040695]
[1755037051556,0.95007141,119790.0,119780.0,0.2040695]
[1755037055060,0.95007141,119790.0,119780.0,0.12057]
[1755037055261,0.95007141,119790.0,119780.0,0.2040694]
[1755037055954,0.95007141,119790.0,119780.0,0.1896294]
[1755037056163,0.95007141,119790.0,119780.0,0.001]
[1755037057056,0.5890025,119790.0,119780.0,0.001]
[1755037057857,0.0835064,119770.0,119760.0,0.1670248]
[1755037058058,0.5681764,119770.0,119760.0,0.1898248]
[1755037058260,0.5681764,119770.0,119760.0,0.19817555]
[1755037058563,0.5681764,119770.0,119760.0,0.26958555]
[1755037058757,0.5681764,119770.0,119760.0,0.27898555]
[1755037058954,0.5681764,119770.0,119760.0,0.29344555]
[1755037059156,0.5701764,119770.0,119760.0,0.29644555]
[1755037059957,0.5701764,119770.0,119760.0,0.29544555]
[1755037060561,0.5701764,119770.0,119760.0,0.2870948]
[1755037060762,0.93124531,119770.0,119760.0,0.2035824]
[1755037062979,0.93124531,119770.0,119760.0,0.1891224]
[1755037063580,0.93124531,119770.0,119760.0,0.0248]
[1755037063782,0.93124531,119770.0,119760.0,0.1083134]
[1755037064578,0.93124531,119770.0,119760.0,0.1431734]
[1755037068183,0.5701764,119770.0,119760.0,0.1431734]
[1755037068384,0.93124531,119770.0,119760.0,0.1582834]
[1755037069785,0.93124531,119770.0,119760.0,0.2035834]
[1755037070082,0.47272,119770.0,119760.0,0.2035834]
[1755037070283,0.1954264,119770.0,119760.0,0.2035834]
[1755037070680,0.1855064,119770.0,119760.0,0.9956634]
[1755037070878,0.54657531,119770.0,119760.0,0.9956634]
[1755037071077,0.93124531,119770.0,119760.0,0.9956634]
[1755037072678,0.2093764,119770.0,119760.0,0.9956634]
[1755037072883,0.57044531,119770.0,119760.0,0.9956634]
[1755037073575,0.1954264,119770.0,119760.0,0.9956634]
[1755037073885,0.102,119770.0,119760.0,1.3564634]
[1755037074389,0.102,119770.0,119760.0,1.71753231]
[1755037074576,0.002,119770.0,119760.0,1.71753231]
[1755037074779,0.002,119770.0,119760.0,1.86752292]
[1755037075379,0.112,119770.0,119760.0,1.50645401]
[1755037075688,0.002,119770.0,119760.0,1.3564634]
[1755037075879,0.002,119770.0,119760.0,1.50642325]
[1755037077688,0.002,119770.0,119760.0,1.3564634]
[1755037078385,0.022,119770.0,119760.0,1.3564634]
[1755037078689,1.522,119770.0,119760.0,1.3564634]
[1755037080891,1.522,119770.0,119760.0,1.71753231]
[1755037081593,1.522,119770.0,119760.0,1.3564634]
[1755037082991,1.522,119770.0,119760.0,1.5234554]
[1755037083590,1.502,119770.0,119760.0,1.93452431]
[1755037083794,0.09425,119790.0,119780.0,0.1304994]
[1755037083992,0.22425,119790.0,119780.0,0.9940994]
[1755037084392,0.22425,119790.0,119780.0,1.3548994]
[1755037084992,0.22525,119790.0,119780.0,1.3548994]
[1755037085397,0.22625,119790.0,119780.0,1.3548994]
[1755037085798,0.002,119790.0,119780.0,1.71596831]
[1755037086000,0.122,119790.0,119780.0,1.3548994]
[1755037086201,0.122,119790.0,119780.0,0.9940994]
[1755037086500,0.19455,119790.0,119780.0,1.3548994]
[1755037086692,0.22625,119790.0,119780.0,1.3548994]
[1755037086887,0.22625,119790.0,119780.0,0.9940994]
[1755037087194,0.22625,119790.0,119780.0,1.3548994]
[1755037090001,0.67081131,119790.0,119780.0,1.3548994]
[1755037090401,0.67081131,119790.0,119780.0,0.9940994]